fUST/lending_fUST_20250702
["ID","MTS","AMOUNT","RATE_DAILY","PERIOD"]
[368993555,1751428243042,-460.0,0.00017717,2]
[368993557,1751428243052,-460.0,0.00017717,2]
[368993559,1751428243062,-1157.71,0.00017717,2]
[368993561,1751428243071,-1616.62,0.00017717,2]
[368993563,1751428243081,-1898.72,0.00017717,2]
[368993565,1751428243090,-460.0,0.00017717,2]
[368993567,1751428243099,-1046.41,0.00017717,2]
[368993569,1751428243109,-460.0,0.00017717,2]
[368993571,1751428243118,-460.0,0.00017717,2]
[368993573,1751428243128,-460.0,0.00017717,2]
[368993575,1751428243137,-460.0,0.00017717,2]
[368993577,1751428243147,-1307.17,0.00017717,2]
[368993579,1751428243156,-460.0,0.00017717,2]
[368993581,1751428243165,-460.0,0.00017717,2]
[368993583,1751428243175,-465.18,0.00017717,2]
[368993585,1751428243184,-460.0,0.00017717,2]
[368993587,1751428243193,-460.0,0.0001772,2]
[368993590,1751428243204,-460.0,0.0001772,2]
[368993591,1751428243213,-460.0,0.0001772,2]
[368993594,1751428243223,-460.0,0.0001772,2]
[368993596,1751428243233,-460.0,0.0001772,2]
[368993598,1751428243242,-460.0,0.0001772,2]
[368993600,1751428243251,-460.0,0.0001772,2]
[368993602,1751428243260,-460.0,0.0001772,2]
[368993604,1751428243270,-544.36,0.0001772,2]
[368993606,1751428243279,-460.0,0.0001772,2]
[368993608,1751428243289,-460.0,0.0001772,2]
[368993610,1751428243298,-2299.17,0.0001772,2]
[368993612,1751428243307,-460.0,0.0001772,2]
[368993614,1751428243316,-460.0,0.0001772,2]
[368993617,1751428243325,-460.0,0.0001772,2]
[368993620,1751428243335,-624.02,0.0001772,2]
[368993623,1751428243344,-460.0,0.0001772,2]
[368993625,1751428243353,-614.54,0.0001772,2]
[368993627,1751428243363,-460.0,0.0001772,2]
[368993629,1751428243373,-460.0,0.0001772,2]
[368993631,1751428243382,-370.36091234,0.0001772,2]
[368993633,1751428243391,-460.0,0.0001772,2]
[368993635,1751428243400,-460.0,0.0001772,2]
[368993637,1751428243409,-460.0,0.0001772,2]
[368993639,1751428243418,-460.0,0.0001772,2]
[368993641,1751428243428,-460.0,0.0001772,2]
[368993643,1751428243437,-1000.0,0.00017721,2]
[368993645,1751428243448,-237.1064758,0.00017721,2]
[368993647,1751428243457,-1000.0,0.00017721,2]
[368993649,1751428243467,-981.95735125,0.00017721,2]
[368993651,1751428243477,-503.95890572,0.00017721,2]
[368993653,1751428243489,-460.0,0.00017721,2]
[368993655,1751428243498,-460.0,0.00017721,2]
[368993657,1751428243508,-460.0,0.00017721,2]
[368993659,1751428243517,-3147.41,0.00017721,2]
[368993661,1751428243527,-460.0,0.00017721,2]
[368993663,1751428243536,-460.0,0.00017721,2]
[368993665,1751428243546,-460.0,0.00017721,2]
[368993667,1751428243556,-765.74,0.00017721,2]
[368993669,1751428243568,-460.0,0.00017721,2]
[368993671,1751428243577,-1048.77,0.00017721,2]
[368993673,1751428243586,-708.63,0.00017721,2]
[368993675,1751428243596,-460.0,0.00017721,2]
[368993677,1751428243605,-1327.44,0.00017721,2]
[368993678,1751428243615,-460.0,0.00017721,2]
[368993681,1751428243624,-862.22,0.00017721,2]
[368993682,1751428243633,-1091.03,0.00017721,2]
[368993684,1751428243643,-460.0,0.0001782,2]
[368993686,1751428243652,-469.69210633,0.0001782,2]
[368993688,1751428243661,-460.0,0.0001782,2]
[368993690,1751428243671,-460.0,0.0001782,2]
[368993692,1751428243681,-469.93443352,0.0001782,2]
[368993694,1751428243690,-500.0,0.0001782,2]
[368993696,1751428243699,-460.0,0.0001782,2]
[368993698,1751428243709,-460.0,0.0001782,2]
[368993701,1751428243719,-460.0,0.0001782,2]
[368993703,1751428243728,-2090.96,0.0001782,2]
[368993704,1751428243737,-460.0,0.0001782,2]
[368993707,1751428243747,-460.0,0.0001782,2]
[368993708,1751428243756,-460.0,0.0001782,2]
[368993711,1751428243765,-460.0,0.0001782,2]
[368993712,1751428243775,-460.0,0.0001782,2]
[368993715,1751428243785,-460.0,0.0001782,2]
[368993716,1751428243795,-460.0,0.0001782,2]
[368993718,1751428243808,-460.0,0.0001782,2]
[368993721,1751428243819,-460.0,0.0001782,2]
[368993723,1751428243830,-460.0,0.0001782,2]
[368993725,1751428243839,-460.0,0.0001782,2]
[368993727,1751428243848,-460.0,0.0001782,2]
[368993729,1751428243858,-460.0,0.0001782,2]
[368993731,1751428243867,-460.0,0.0001782,2]
[368993733,1751428243877,-460.0,0.0001782,2]
[368993735,1751428243886,-467.89122894,0.0001782,2]
[368993737,1751428243895,-485.46,0.0001782,2]
[368993739,1751428243905,-4166.15,0.0001782,2]
[368993741,1751428243916,-281.78291278,0.0001782,2]
[368993743,1751428243925,-1076.06,0.0001782,2]
[368993745,1751428243935,-460.0,0.0001782,2]
[368993747,1751428243945,-460.0,0.0001782,2]
[368993749,1751428243958,-460.0,0.0001782,2]
[368993751,1751428243968,-460.0,0.0001782,2]
[368993753,1751428243977,-460.0,0.0001782,2]
[368993755,1751428243987,-460.0,0.0001782,2]
[368993757,1751428243996,-460.0,0.0001782,2]
[368993759,1751428244006,-461.54057422,0.00017844,2]
[368993761,1751428244015,-181.38549486,0.00017844,2]
[368993763,1751428244025,-546.95,0.00017844,2]
[368993765,1751428244035,-460.0,0.00017844,2]
[368993767,1751428244045,-500.0,0.00017873,2]
[368993769,1751428244054,-500.0,0.00017873,2]
[368993771,1751428244064,-501.12958452,0.00017873,2]
[368993773,1751428244073,-533.59128708,0.00017873,2]
[368993775,1751428244083,-500.0,0.00017873,2]
[368993777,1751428244092,-503.19294192,0.00017873,2]
[368993780,1751428244104,-501.18491003,0.00017873,2]
[368993782,1751428244113,-500.0,0.00017873,2]
[368993784,1751428244122,-504.37238815,0.00017873,2]
[368993786,1751428244132,-500.0,0.00017873,2]
[368993788,1751428244142,-500.0,0.00017873,2]
[368993790,1751428244152,-587.48333983,0.00017873,2]
[368993792,1751428244161,-500.0,0.00017873,2]
[368993794,1751428244171,-151.0,0.000179,2]
[368993796,1751428244181,-151.0,0.00017945,2]
[368993808,1751428244280,-151.0,0.00017945,2]
[368993810,1751428244298,-173.72017,0.00017945,2]
[368993812,1751428244308,-173.72017,0.00017945,2]
[368993814,1751428244318,-1324.257229,0.00017945,2]
[368993816,1751428244327,-158.485401,0.00017945,2]
[368993818,1751428244337,-158.485401,0.00017945,2]
[368993820,1751428244346,-500.0,0.00017973,2]
[368993822,1751428244356,-571.82085049,0.00017975,2]
[368993824,1751428244366,-460.0,0.00017989,2]
[368993826,1751428244375,-1158.83,0.00017989,2]
[368993828,1751428244385,-460.0,0.00017989,2]
[368993830,1751428244394,-752.34,0.00017991,2]
[368993832,1751428244404,-1771.08,0.00017991,2]
[368993834,1751428244413,-460.0,0.00017991,2]
[368993836,1751428244423,-460.0,0.00017991,2]
[368993838,1751428244433,-460.0,0.00017991,2]
[368993841,1751428244443,-460.0,0.00017991,2]
[368993843,1751428244452,-1157.71,0.00017991,2]
[368993845,1751428244462,-1616.62,0.00017991,2]
[368993847,1751428244470,-1898.72,0.00017991,2]
[368993849,1751428244480,-460.0,0.00017991,2]
[368993851,1751428244493,-1046.41,0.00017991,2]
[368993853,1751428244502,-460.0,0.00017991,2]
[368993854,1751428244511,-460.0,0.00017991,2]
[368993857,1751428244520,-460.0,0.00017991,2]
[368993858,1751428244530,-460.0,0.00017991,2]
[368993860,1751428244540,-1307.17,0.00017991,2]
[368993862,1751428244549,-460.0,0.00017991,2]
[368993864,1751428244558,-460.0,0.00017991,2]
[368993866,1751428244569,-465.18,0.00017991,2]
[368993868,1751428244579,-460.0,0.00017991,2]
[368993870,1751428244588,-460.0,0.00017994,2]
[368993872,1751428244598,-460.0,0.00017994,2]
[368993874,1751428244607,-460.0,0.00017994,2]
[368993876,1751428244616,-460.0,0.00017994,2]
[368993878,1751428244627,-460.0,0.00017994,2]
[368993880,1751428244637,-460.0,0.00017994,2]
[368993882,1751428244648,-460.0,0.00017994,2]
[368993884,1751428244658,-460.0,0.00017994,2]
[368993886,1751428244667,-544.36,0.00017994,2]
[368993888,1751428244677,-460.0,0.00017994,2]
[368993890,1751428244686,-460.0,0.00017994,2]
[368993892,1751428244696,-2299.17,0.00017994,2]
[368993894,1751428244705,-460.0,0.00017994,2]
[368993896,1751428244714,-460.0,0.00017994,2]
[368993898,1751428244723,-368.63301343,0.00017994,2]
[368993900,1751428244733,-624.02,0.00017994,2]
[368993902,1751428244743,-460.0,0.00017994,2]
[368993904,1751428244752,-614.54,0.00017994,2]
[368993906,1751428244762,-460.0,0.00017994,2]
[368993908,1751428244771,-460.0,0.00017994,2]
[368993911,1751428244781,-460.0,0.00017994,2]
[368993913,1751428244791,-460.0,0.00017994,2]
[368993915,1751428244801,-460.0,0.00017994,2]
[368993917,1751428244811,-460.0,0.00017994,2]
[368993919,1751428244820,-495.13477471,0.00017994,2]
[368993921,1751428244830,-460.0,0.00017995,2]
[368993923,1751428244839,-445.58983267,0.00017995,2]
[368993925,1751428244848,-460.0,0.00017995,2]
[368993927,1751428244857,-3147.41,0.00017995,2]
[368993929,1751428244867,-460.0,0.00017995,2]
[368993931,1751428244876,-460.0,0.00017995,2]
[368993933,1751428244885,-460.0,0.00017995,2]
[368993935,1751428244895,-765.74,0.00017995,2]
[368993937,1751428244904,-460.0,0.00017995,2]
[368993939,1751428244913,-1048.77,0.00017995,2]
[368993941,1751428244922,-708.63,0.00017995,2]
[368993943,1751428244932,-460.0,0.00017995,2]
[368993945,1751428244942,-1327.44,0.00017995,2]
[368993947,1751428244957,-460.0,0.00017995,2]
[368993949,1751428244967,-862.22,0.00017995,2]
[368993951,1751428244976,-1091.03,0.00017995,2]
[368993953,1751428244985,-493.253258,0.00018,2]
[368993955,1751428244995,-493.253258,0.00018,2]
[368993957,1751428245004,-159.27475,0.00018,2]
[368993959,1751428245015,-3296.05118815,0.00018,2]
[368993961,1751428245024,-1480.25366966,0.00018082,2]
[368993963,1751428245034,-460.0,0.00018094,2]
[368993965,1751428245043,-460.0,0.00018094,2]
[368993967,1751428245053,-467.19185381,0.00018094,2]
[368993970,1751428245064,-233.96184154,0.00018094,2]
[368993972,1751428245074,-460.0,0.00018094,2]
[368993973,1751428245084,-460.0,0.00018094,2]
[368993975,1751428245094,-460.0,0.00018094,2]
[368993977,1751428245103,-2090.96,0.00018094,2]
[368993979,1751428245113,-460.0,0.00018094,2]
[368993981,1751428245122,-601.01293737,0.00018094,2]
[368993984,1751428245133,-492.81081763,0.00018094,2]
[368993986,1751428245143,-460.0,0.00018094,2]
[368993987,1751428245153,-529.5,0.00018094,2]
[368993990,1751428245164,-530.04,0.00018094,2]
[368993992,1751428245173,-460.0,0.00018094,2]
[368993993,1751428245182,-460.0,0.00018094,2]
[368993995,1751428245191,-460.0,0.00018094,2]
[368993997,1751428245201,-460.0,0.00018094,2]
[368993999,1751428245210,-460.0,0.00018094,2]
[368994001,1751428245219,-460.0,0.00018094,2]
[368994003,1751428245229,-460.0,0.00018094,2]
[368994005,1751428245238,-566.64,0.00018094,2]
[368994007,1751428245247,-398.75583671,0.00018094,2]
[368994009,1751428245256,-485.46,0.00018094,2]
[368994011,1751428245266,-4166.15,0.00018094,2]
[368994013,1751428245275,-1076.06,0.00018094,2]
[368994015,1751428245284,-460.0,0.00018094,2]
[368994017,1751428245293,-460.0,0.00018094,2]
[368994019,1751428245303,-466.06809695,0.00018094,2]
[368994021,1751428245313,-460.0,0.00018094,2]
[368994023,1751428245322,-460.0,0.00018094,2]
[368994026,1751428245332,-460.0,0.00018094,2]
[368994028,1751428245341,-151.0,0.000181,2]
[368994030,1751428245351,-546.95,0.00018118,2]
[368994032,1751428245361,-460.0,0.00018118,2]
[368994034,1751428245371,-151.0,0.00018119,2]
[368994036,1751428245380,-197.340509,0.00018119,2]
[368994038,1751428245390,-1000.0,0.0001816,2]
[368994040,1751428245399,-151.0,0.00018168,2]
[368994042,1751428245409,-151.768806,0.00018168,2]
[368994044,1751428245419,-151.0,0.00018168,2]
[368994046,1751428245429,-3296.05118794,0.00018176,2]
[368994048,1751428245439,-151.0,0.000182,2]
[368994051,1751428245449,-151.0,0.00018203,2]
[368994054,1751428245458,-500.0,0.00018203,2]
[368994057,1751428245468,-151.0,0.00018203,2]
[368994060,1751428245477,-500.0,0.00018203,2]
[368994062,1751428245489,-500.0,0.00018203,2]
[368994064,1751428245498,-500.0,0.00018203,2]
[368994067,1751428245508,-152.21730572,0.00018203,2]
[368994069,1751428245518,-500.0,0.00018203,2]
[368994071,1751428245528,-151.0,0.00018203,2]
[368994073,1751428245539,-151.0,0.00018203,2]
[368994075,1751428245548,-153.48649332,0.00018203,2]
[368994077,1751428245557,-151.0,0.00018203,2]
[368994079,1751428245567,-153.53408234,0.00018203,2]
[368994082,1751428245577,-500.0,0.00018203,2]
[368994084,1751428245587,-151.0,0.00018203,2]
[368994086,1751428245597,-153.10141575,0.00018203,2]
[368994088,1751428245607,-154.5342084,0.00018203,2]
[368994090,1751428245616,-151.0,0.00018203,2]
[368994093,1751428245626,-151.0,0.0001823,2]
[368994096,1751428245635,-500.0,0.0001823,2]
[368994098,1751428245645,-151.0,0.0001823,2]
[368994100,1751428245654,-500.0,0.0001823,2]
[368994111,1751428245745,-500.0,0.0001823,2]
[368994113,1751428245755,-500.0,0.0001823,2]
[368994115,1751428245765,-500.0,0.0001823,2]
[368994117,1751428245775,-194.55225551,0.0001823,2]
[368994119,1751428245785,-151.0,0.0001823,2]
[368994121,1751428245795,-151.0,0.0001823,2]
[368994123,1751428245804,-500.0,0.0001823,2]
[368994125,1751428245814,-202.65901361,0.0001823,2]
[368994127,1751428245823,-151.0,0.0001823,2]
[368994130,1751428245833,-151.0,0.00018258,2]
[368994132,1751428245843,-217.19185007,0.00018258,2]
[368994134,1751428245852,-151.0,0.00018258,2]
[368994136,1751428245861,-305.31710854,0.00018258,2]
[368994138,1751428245870,-500.0,0.00018258,2]
[368994140,1751428245880,-500.0,0.00018258,2]
[368994141,1751428245889,-500.0,0.00018258,2]
[368994144,1751428245899,-152.81481507,0.00018258,2]
[368994146,1751428245909,-151.0,0.00018258,2]
[368994148,1751428245918,-500.0,0.00018258,2]
[368994150,1751428245927,-151.0,0.00018258,2]
[368994152,1751428245937,-460.0,0.00018263,2]
[368994154,1751428245946,-1158.83,0.00018263,2]
[368994156,1751428245956,-505.53283362,0.00018263,2]
[368994158,1751428245965,-752.34,0.00018265,2]
[368994160,1751428245975,-1771.08,0.00018265,2]
[368994162,1751428245985,-460.0,0.00018265,2]
[368994164,1751428245994,-460.0,0.00018265,2]
[368994166,1751428246003,-460.0,0.00018265,2]
[368994168,1751428246012,-460.0,0.00018265,2]
[368994170,1751428246021,-1157.71,0.00018265,2]
[368994172,1751428246031,-1616.62,0.00018265,2]
[368994174,1751428246040,-1898.72,0.00018265,2]
[368994176,1751428246049,-460.0,0.00018265,2]
[368994178,1751428246058,-1046.41,0.00018265,2]
[368994180,1751428246068,-460.0,0.00018265,2]
[368994182,1751428246077,-460.0,0.00018265,2]
[368994184,1751428246086,-460.0,0.00018265,2]
[368994186,1751428246096,-460.0,0.00018265,2]
[368994188,1751428246105,-1307.17,0.00018265,2]
[368994190,1751428246114,-269.59129564,0.00018265,2]
[368994191,1751428246124,-486.70009745,0.00018265,2]
[368994194,1751428246134,-465.18,0.00018265,2]
[368994196,1751428246143,-460.0,0.00018265,2]
[368994198,1751428246152,-313.15163902,0.00018268,2]
[368994200,1751428246162,-460.0,0.00018268,2]
[368994202,1751428246172,-460.0,0.00018268,2]
[368994204,1751428246181,-388.13466998,0.00018268,2]
[368994206,1751428246191,-262.37817723,0.00018268,2]
[368994208,1751428246200,-460.0,0.00018268,2]
[368994210,1751428246210,-460.0,0.00018268,2]
[368994212,1751428246219,-460.0,0.00018268,2]
[368994214,1751428246228,-544.36,0.00018268,2]
[368994216,1751428246238,-460.0,0.00018268,2]
[368994218,1751428246248,-460.0,0.00018268,2]
[368994220,1751428246257,-2299.17,0.00018268,2]
[368994222,1751428246267,-460.0,0.00018268,2]
[368994224,1751428246276,-460.0,0.00018268,2]
[368994226,1751428246286,-624.02,0.00018268,2]
[368994228,1751428246295,-460.0,0.00018268,2]
[368994230,1751428246305,-614.54,0.00018268,2]
[368994232,1751428246314,-460.0,0.00018268,2]
[368994234,1751428246323,-460.0,0.00018268,2]
[368994236,1751428246332,-460.0,0.00018268,2]
[368994238,1751428246342,-460.0,0.00018268,2]
[368994240,1751428246351,-460.0,0.00018268,2]
[368994242,1751428246361,-460.0,0.00018268,2]
[368994244,1751428246371,-1500.0,0.00018268,2]
[368994246,1751428246381,-1055.64511576,0.00018268,2]
[368994248,1751428246390,-460.0,0.00018269,2]
[368994250,1751428246400,-471.95104568,0.00018269,2]
[368994252,1751428246409,-3147.41,0.00018269,2]
[368994254,1751428246418,-460.0,0.00018269,2]
[368994256,1751428246428,-493.64409279,0.00018269,2]
[368994258,1751428246437,-460.0,0.00018269,2]
[368994260,1751428246447,-765.74,0.00018269,2]
[368994262,1751428246456,-460.0,0.00018269,2]
[368994264,1751428246465,-1048.77,0.00018269,2]
[368994266,1751428246475,-708.63,0.00018269,2]
[368994268,1751428246485,-460.0,0.00018269,2]
[368994270,1751428246496,-1327.44,0.00018269,2]
[368994272,1751428246505,-460.0,0.00018269,2]
[368994274,1751428246515,-862.22,0.00018269,2]
[368994276,1751428246524,-1091.03,0.00018269,2]
[368994278,1751428246535,-263.06832643,0.00018285,2]
[368994280,1751428246545,-200.10982746,0.00018285,2]
[368994282,1751428246556,-500.0,0.00018285,2]
[368994284,1751428246565,-356.13496559,0.00018285,2]
[368994286,1751428246575,-258.64031699,0.00018285,2]
[368994288,1751428246584,-151.0,0.00018285,2]
[368994290,1751428246593,-338.0,0.00018285,2]
[368994292,1751428246602,-151.64010181,0.00018285,2]
[368994294,1751428246612,-151.0,0.000183,2]
[368994296,1751428246621,-276.74938052,0.00018313,2]
[368994298,1751428246631,-254.84409959,0.00018313,2]
[368994300,1751428246641,-151.0,0.0001834,2]
[368994302,1751428246651,-199.97640313,0.0001834,2]
[368994304,1751428246659,-286.19493398,0.0001834,2]
[368994306,1751428246670,-478.15591882,0.00018368,2]
[368994309,1751428246680,-460.0,0.00018368,2]
[368994311,1751428246690,-460.0,0.00018368,2]
[368994312,1751428246700,-460.0,0.00018368,2]
[368994314,1751428246709,-460.0,0.00018368,2]
[368994316,1751428246719,-2090.96,0.00018368,2]
[368994318,1751428246728,-460.0,0.00018368,2]
[368994320,1751428246737,-460.0,0.00018368,2]
[368994322,1751428246747,-460.0,0.00018368,2]
[368994324,1751428246756,-460.0,0.00018368,2]
[368994326,1751428246765,-460.0,0.00018368,2]
[368994328,1751428246775,-460.0,0.00018368,2]
[368994330,1751428246784,-220.31397767,0.00018368,2]
[368994332,1751428246794,-460.0,0.00018368,2]
[368994334,1751428246803,-460.0,0.00018368,2]
[368994336,1751428246812,-485.46,0.00018368,2]
[368994338,1751428246821,-4166.15,0.00018368,2]
[368994340,1751428246830,-1076.06,0.00018368,2]
[368994342,1751428246840,-460.0,0.00018368,2]
[368994344,1751428246850,-182.68,0.00018368,2]
[368994346,1751428246859,-460.0,0.00018368,2]
[368994348,1751428246868,-460.0,0.00018368,2]
[368994349,1751428246878,-546.95,0.00018392,2]
[368994350,1751428246888,-460.0,0.00018392,2]
[368994351,1751428246897,-151.0,0.00018397,2]
[368994352,1751428246907,-151.0,0.00018397,2]
[368994353,1751428246916,-173.72017,0.00018397,2]
[368994354,1751428246925,-173.72017,0.00018397,2]
[368994355,1751428246935,-1324.257229,0.00018397,2]
[368994356,1751428246944,-158.485401,0.00018397,2]
[368994357,1751428246954,-158.485401,0.00018397,2]
[368994358,1751428246963,-151.0,0.000184,2]
[368994359,1751428246973,-500.0,0.00018421,2]
[368994360,1751428247059,-1003.76738109,0.00018421,2]
[368994362,1751428247071,-503.65245171,0.00018421,2]
[368994364,1751428247080,-502.05536569,0.00018421,2]
[368994366,1751428247090,-1000.0,0.00018421,2]
[368994368,1751428247099,-420.0,0.00018451,2]
[368994370,1751428247109,-420.0,0.00018451,2]
[368994372,1751428247119,-3296.05118794,0.00018452,2]
[368994374,1751428247128,-151.0,0.00018452,2]
[368994376,1751428247138,-175.120717,0.00018452,2]
[368994378,1751428247148,-175.120717,0.00018452,2]
[368994381,1751428247179,-235.588714,0.00018452,2]
[368994382,1751428247188,-151.0,0.00018452,2]
[368994384,1751428247198,-235.588714,0.00018452,2]
[368994386,1751428247207,-1229.048926,0.00018452,2]
[368994388,1751428247216,-1229.048926,0.00018452,2]
[368994390,1751428247226,-151.0,0.00018452,2]
[368994392,1751428247235,-1217.184091,0.00018452,2]
[368994394,1751428247246,-1217.184091,0.00018452,2]
[368994396,1751428247255,-280.838703,0.00018452,2]
[368994398,1751428247264,-280.838703,0.00018452,2]
[368994400,1751428247274,-151.0,0.000185,2]
[368994402,1751428247283,-341.28550224,0.00018521,2]
[368994404,1751428247292,-151.0,0.00018521,2]
[368994406,1751428247301,-151.0,0.00018521,2]
[368994408,1751428247311,-151.0,0.00018521,2]
[368994410,1751428247321,-151.0,0.00018521,2]
[368994412,1751428247330,-151.0,0.00018521,2]
[368994414,1751428247339,-151.0,0.00018521,2]
[368994416,1751428247348,-151.0,0.00018521,2]
[368994418,1751428247357,-151.0,0.00018521,2]
[368994420,1751428247367,-151.0,0.00018521,2]
[368994422,1751428247376,-226.864927,0.00018521,2]
[368994424,1751428247385,-226.864927,0.00018521,2]
[368994426,1751428247394,-460.0,0.00018537,2]
[368994428,1751428247403,-1158.83,0.00018537,2]
[368994430,1751428247413,-752.34,0.00018539,2]
[368994432,1751428247422,-1771.08,0.00018539,2]
[368994434,1751428247432,-460.0,0.00018539,2]
[368994436,1751428247441,-460.0,0.00018539,2]
[368994438,1751428247450,-460.0,0.00018539,2]
[368994440,1751428247460,-460.0,0.00018539,2]
[368994442,1751428247469,-1157.71,0.00018539,2]
[368994444,1751428247478,-1616.62,0.00018539,2]
[368994446,1751428247489,-1898.72,0.00018539,2]
[368994448,1751428247498,-460.0,0.00018539,2]
[368994450,1751428247508,-1046.41,0.00018539,2]
[368994452,1751428247517,-460.0,0.00018539,2]
[368994454,1751428247527,-460.0,0.00018539,2]
[368994456,1751428247537,-460.0,0.00018539,2]
[368994457,1751428247547,-460.0,0.00018539,2]
[368994459,1751428247556,-1307.17,0.00018539,2]
[368994461,1751428247568,-465.18,0.00018539,2]
[368994463,1751428247579,-460.0,0.00018539,2]
[368994466,1751428247589,-460.0,0.00018542,2]
[368994468,1751428247598,-460.0,0.00018542,2]
[368994469,1751428247607,-258.643165,0.00018542,2]
[368994471,1751428247616,-151.0,0.00018542,2]
[368994473,1751428247625,-460.0,0.00018542,2]
[368994475,1751428247635,-460.0,0.00018542,2]
[368994478,1751428247646,-195.525905,0.00018542,2]
[368994480,1751428247656,-151.0,0.00018542,2]
[368994482,1751428247665,-195.525905,0.00018542,2]
[368994484,1751428247675,-180.061695,0.00018542,2]
[368994485,1751428247684,-460.0,0.00018542,2]
[368994487,1751428247693,-544.36,0.00018542,2]
[368994489,1751428247702,-151.0,0.00018542,2]
[368994491,1751428247711,-460.0,0.00018542,2]
[368994494,1751428247721,-460.0,0.00018542,2]
[368994495,1751428247730,-2299.17,0.00018542,2]
[368994497,1751428247739,-460.0,0.00018542,2]
[368994499,1751428247749,-460.0,0.00018542,2]
[368994502,1751428247758,-624.02,0.00018542,2]
[368994503,1751428247768,-614.54,0.00018542,2]
[368994505,1751428247778,-517.79702891,0.00018542,2]
[368994508,1751428247789,-460.0,0.00018542,2]
[368994510,1751428247798,-460.0,0.00018542,2]
[368994512,1751428247809,-151.0,0.00018542,2]
[368994514,1751428247818,-460.0,0.00018542,2]
[368994515,1751428247828,-460.0,0.00018542,2]
[368994518,1751428247837,-1680.0,0.00018542,2]
[368994520,1751428247846,-460.0,0.00018542,2]
[368994521,1751428247856,-152.737831,0.00018542,2]
[368994524,1751428247865,-460.0,0.00018543,2]
[368994526,1751428247875,-151.0,0.00018543,2]
[368994528,1751428247884,-151.0,0.00018543,2]
[368994530,1751428247893,-217.424729,0.00018543,2]
[368994532,1751428247902,-180.123262,0.00018543,2]
[368994534,1751428247911,-151.0,0.00018543,2]
[368994536,1751428247920,-180.123262,0.00018543,2]
[368994538,1751428247929,-318.325395,0.00018543,2]
[368994540,1751428247938,-318.325395,0.00018543,2]
[368994542,1751428247948,-2876.79141,0.00018543,2]
[368994544,1751428247957,-2876.79141,0.00018543,2]
[368994546,1751428247966,-151.0,0.00018543,2]
[368994548,1751428247975,-494.501349,0.00018543,2]
[368994550,1751428247985,-3147.41,0.00018543,2]
[368994552,1751428247994,-460.0,0.00018543,2]
[368994554,1751428248003,-494.501349,0.00018543,2]
[368994556,1751428248014,-460.0,0.00018543,2]
[368994558,1751428248023,-765.74,0.00018543,2]
[368994560,1751428248032,-460.0,0.00018543,2]
[368994562,1751428248042,-1048.77,0.00018543,2]
[368994563,1751428248052,-708.63,0.00018543,2]
[368994565,1751428248061,-460.0,0.00018543,2]
[368994567,1751428248072,-1327.44,0.00018543,2]
[368994569,1751428248082,-460.0,0.00018543,2]
[368994571,1751428248091,-862.22,0.00018543,2]
[368994574,1751428248103,-1091.03,0.00018543,2]
[368994576,1751428248112,-150.16796441,0.00018642,2]